fUSD/lending_fUSD_20260607
["ID","MTS","AMOUNT","RATE_DAILY","PERIOD"]
[424320180,1780768263000,-150.0,0.00028716,7]
[424320185,1780768263000,-1134.56,0.0002873,7]
[424320181,1780768263000,-1206.96,0.00028725,2]
[424320178,1780768263000,-1206.96,0.00028693,30]
[424320186,1780768263000,-150.0,0.00028737,2]
[424320184,1780768263000,-1796.14,0.0002873,7]
[424320188,1780768263000,-150.0,0.00028737,2]
[424320187,1780768263000,-150.0,0.00028737,2]
[424320190,1780768263000,-150.0,0.00028737,2]
[424320126,1780768263000,-3405.06,0.000283,7]
[424320189,1780768263000,-150.0,0.00028737,2]
[424320160,1780768263000,-150.0,0.00028604,7]
[424320175,1780768263000,-150.0,0.00028672,7]
[424320153,1780768263000,-152.0,0.00028556,5]
[424320132,1780768263000,-2000.0,0.00028362,7]
[424320157,1780768263000,-3405.06,0.000286,7]
[424320129,1780768263000,-150.0,0.00028312,7]
[424320131,1780768263000,-150.0,0.00028358,7]
[424320128,1780768263000,-150.0,0.00028303,7]
[424320130,1780768263000,-150.0,0.00028357,7]
[424320127,1780768263000,-4658.84,0.000283,7]
[424320149,1780768263000,-168.33,0.00028493,2]
[424320138,1780768263000,-1793.307026,0.00028364,15]
[424320137,1780768263000,-1500.0,0.00028364,15]
[424320146,1780768263000,-14910.11,0.0002847,7]
[424320148,1780768263000,-150.0,0.00028492,7]
[424320139,1780768263000,-150.0,0.00028366,7]
[424320144,1780768263000,-150.0,0.00028447,7]
[424320147,1780768263000,-200.0,0.00028474,2]
[424320151,1780768263000,-150.0,0.00028525,7]
[424320140,1780768263000,-150.0,0.00028389,7]
[424320142,1780768263000,-150.0,0.00028402,7]
[424320141,1780768263000,-464.23816978,0.00028394,2]
[424320143,1780768263000,-150.0,0.00028413,7]
[424320155,1780768263000,-150.0,0.00028582,7]
[424320162,1780768263000,-150.0,0.00028604,7]
[424320150,1780768263000,-150.0,0.00028522,7]
[424320154,1780768263000,-150.0,0.00028577,7]
[424320163,1780768263000,-150.0,0.00028627,7]
[424320156,1780768263000,-1196.77,0.000286,14]
[424320145,1780768263000,-150.0,0.00028467,7]
[424320161,1780768263000,-150.0,0.00028604,7]
[424320152,1780768263000,-150.0,0.00028537,7]
[424320233,1780768264000,-4658.84,0.000289,7]
[424320239,1780768264000,-151.0,0.00028924,4]
[424320224,1780768264000,-1206.96,0.00028852,7]
[424320240,1780768264000,-150.0,0.00028941,7]
[424320229,1780768264000,-1206.28,0.00028883,30]
[424320241,1780768264000,-1206.96,0.00028947,7]
[424320225,1780768264000,-1206.28,0.00028852,7]
[424320234,1780768264000,-200.0,0.000289,2]
[424320237,1780768264000,-1206.96,0.00028915,2]
[424320230,1780768264000,-464.23816978,0.00028892,2]
[424320228,1780768264000,-1206.96,0.00028883,30]
[424320231,1780768264000,-150.0,0.00028896,7]
[424320232,1780768264000,-3405.06,0.000289,7]
[424320235,1780768264000,-339.0,0.000289,2]
[424320249,1780768264000,-2856.72,0.00028964,2]
[424320238,1780768264000,-1206.28,0.00028915,2]
[424320251,1780768264000,-1601.735642,0.00028964,3]
[424320253,1780768264000,-1601.735642,0.00028964,3]
[424320242,1780768264000,-1206.28,0.00028947,7]
[424320254,1780768264000,-151.0,0.00028964,7]
[424320247,1780768264000,-4426.92,0.00028964,2]
[424320243,1780768264000,-150.0,0.0002896,7]
[424320244,1780768264000,-223.84903562,0.00028962,2]
[424320245,1780768264000,-621.37529809,0.00028962,2]
[424320246,1780768264000,-4542.82,0.00028964,2]
[424320252,1780768264000,-1601.735642,0.00028964,3]
[424320255,1780768264000,-151.0,0.00028964,7]
[424320248,1780768264000,-2783.47,0.00028964,2]
[424320226,1780768264000,-500.0,0.00028855,2]
[424320236,1780768264000,-150.0,0.00028905,7]
[424320223,1780768264000,-150.0,0.00028851,7]
[424320192,1780768264000,-150.0,0.00028737,2]
[424320221,1780768264000,-150.0,0.00028842,7]
[424320250,1780768264000,-1601.735642,0.00028964,3]
[424320194,1780768264000,-150.0,0.00028737,2]
[424320193,1780768264000,-150.0,0.00028737,2]
[424320195,1780768264000,-759.0,0.00028739,3]
[424320196,1780768264000,-150.0,0.00028741,7]
[424320201,1780768264000,-173.0,0.00028767,14]
[424320197,1780768264000,-1206.96,0.00028756,7]
[424320200,1780768264000,-217.00224169,0.00028767,2]
[424320199,1780768264000,-150.0,0.00028761,7]
[424320191,1780768264000,-150.0,0.00028737,2]
[424320198,1780768264000,-1206.28,0.00028756,7]
[424320203,1780768264000,-300.0,0.00028768,2]
[424320202,1780768264000,-150.0,0.00028767,2]
[424320213,1780768264000,-3554.0,0.00028809,2]
[424320227,1780768264000,-150.0,0.00028855,2]
[424320206,1780768264000,-150.0,0.00028796,7]
[424320205,1780768264000,-1206.28,0.00028788,30]
[424320212,1780768264000,-1358.0,0.00028809,2]
[424320208,1780768264000,-4426.92,0.00028797,7]
[424320211,1780768264000,-150.0,0.00028806,7]
[424320209,1780768264000,-2783.47,0.00028797,7]
[424320210,1780768264000,-2856.72,0.00028797,7]
[424320207,1780768264000,-4542.82,0.00028797,7]
[424320216,1780768264000,-933.0,0.00028809,2]
[424320215,1780768264000,-1227.0,0.00028809,2]
[424320217,1780768264000,-6073.0,0.00028809,2]
[424320219,1780768264000,-1206.96,0.0002882,2]
[424320220,1780768264000,-1206.28,0.0002882,2]
[424320222,1780768264000,-150.0,0.0002885,7]
[424320218,1780768264000,-150.0,0.00028819,7]
[424320204,1780768264000,-1206.96,0.00028788,30]
[424320256,1780768264000,-32267.00039438,0.0002897,6]
[424320214,1780768264000,-382.0,0.00028809,2]
[424320261,1780768264000,-617.346821,0.0002897,7]
[424320295,1780768264000,-151.0,0.00029,7]
[424320292,1780768264000,-151.0,0.00029,7]
[424320296,1780768264000,-527.14288805,0.00029,2]
[424320298,1780768264000,-1094.222631,0.00029,7]
[424320299,1780768264000,-199.145761,0.00029,7]
[424320305,1780768264000,-220.0,0.00029,7]
[424320308,1780768264000,-4263.549049,0.00029,7]
[424320306,1780768264000,-4263.549049,0.00029,7]
[424320303,1780768264000,-199.145761,0.00029,7]
[424320300,1780768264000,-1094.222631,0.00029,7]
[424320301,1780768264000,-199.145761,0.00029,7]
[424320297,1780768264000,-1094.222631,0.00029,7]
[424320307,1780768264000,-4263.549049,0.00029,7]
[424320304,1780768264000,-199.145761,0.00029,7]
[424320294,1780768264000,-151.0,0.00029,7]
[424320319,1780768264000,-158.0,0.00029,4]
[424320309,1780768264000,-4263.549049,0.00029,7]
[424320311,1780768264000,-158.0,0.00029,4]
[424320312,1780768264000,-158.0,0.00029,4]
[424320310,1780768264000,-165.0,0.00029,4]
[424320313,1780768264000,-158.0,0.00029,4]
[424320323,1780768264000,-157.0,0.00029,4]
[424320321,1780768264000,-159.0,0.00029,4]
[424320314,1780768264000,-158.0,0.00029,4]
[424320315,1780768264000,-158.0,0.00029,4]
[424320316,1780768264000,-158.0,0.00029,4]
[424320318,1780768264000,-158.0,0.00029,4]
[424320317,1780768264000,-158.0,0.00029,4]
[424320320,1780768264000,-158.0,0.00029,4]
[424320262,1780768264000,-617.346821,0.0002897,7]
[424320302,1780768264000,-1094.222631,0.00029,7]
[424320286,1780768264000,-1000.0,0.00029,2]
[424320322,1780768264000,-157.0,0.00029,4]
[424320289,1780768264000,-8000.0,0.00029,2]
[424320285,1780768264000,-511.34900412,0.00029,2]
[424320258,1780768264000,-190.139082,0.0002897,7]
[424320259,1780768264000,-151.0,0.0002897,7]
[424320260,1780768264000,-617.346821,0.0002897,7]
[424320257,1780768264000,-151.0,0.0002897,7]
[424320267,1780768264000,-1206.96,0.00028979,30]
[424320265,1780768264000,-164.68866913,0.00028971,2]
[424320266,1780768264000,-194.000028,0.00028971,2]
[424320268,1780768264000,-1206.28,0.00028979,30]
[424320263,1780768264000,-617.346821,0.0002897,7]
[424320272,1780768264000,-7178.69609853,0.00029,2]
[424320279,1780768264000,-1196.77,0.00029,14]
[424320276,1780768264000,-265.75,0.00029,2]
[424320271,1780768264000,-983.8,0.00029,2]
[424320275,1780768264000,-200.0,0.00029,2]
[424320264,1780768264000,-179.97120458,0.00028971,2]
[424320270,1780768264000,-151.0,0.00028997,7]
[424320288,1780768264000,-400.0,0.00029,2]
[424320281,1780768264000,-1395.83522564,0.00029,2]
[424320282,1780768264000,-1000.66450105,0.00029,2]
[424320287,1780768264000,-40005.7,0.00029,2]
[424320290,1780768264000,-7685.19924401,0.00029,2]
[424320293,1780768264000,-151.0,0.00029,7]
[424320291,1780768264000,-10000.0,0.00029,2]
[424320284,1780768264000,-219.75991866,0.00029,2]
[424320269,1780768264000,-150.0,0.00028986,7]
[424320273,1780768264000,-200.0,0.00029,2]
[424320280,1780768264000,-223545.7210156,0.00029,7]
[424320274,1780768264000,-200.0,0.00029,2]
[424320277,1780768264000,-8917.06599186,0.00029,30]
[424320283,1780768264000,-5688.50093965,0.00029,5]
[424320278,1780768264000,-533.06212738,0.00029,2]
[424320354,1780768265000,-177.01653405,0.00029016,2]
[424320361,1780768265000,-307.83310308,0.00029016,2]
[424320358,1780768265000,-223.18068202,0.00029016,2]
[424320360,1780768265000,-326.52040846,0.00029016,2]
[424320352,1780768265000,-509.46559882,0.00029016,2]
[424320356,1780768265000,-404.2101904,0.00029016,2]
[424320351,1780768265000,-361.60642446,0.00029016,2]
[424320355,1780768265000,-348.17605412,0.00029016,2]
[424320353,1780768265000,-189.56678385,0.00029016,2]
[424320359,1780768265000,-237.62669559,0.00029016,2]
[424320362,1780768265000,-314.89748628,0.00029016,2]
[424320375,1780768265000,-150.0,0.00029034,7]
[424320373,1780768265000,-362.45452088,0.00029022,2]
[424320364,1780768265000,-315.03814019,0.00029016,2]
[424320363,1780768265000,-351.02671801,0.00029016,2]
[424320374,1780768265000,-150.0,0.00029031,7]
[424320365,1780768265000,-336.6869724,0.00029016,2]
[424320366,1780768265000,-329.12274809,0.00029016,2]
[424320367,1780768265000,-176.28545973,0.00029016,2]
[424320370,1780768265000,-300.14554431,0.00029019,2]
[424320350,1780768265000,-247.60686755,0.00029016,2]
[424320372,1780768265000,-311.99117012,0.00029019,2]
[424320357,1780768265000,-307.27373556,0.00029016,2]
[424320344,1780768265000,-337.25019592,0.00029016,2]
[424320332,1780768265000,-1044.30628668,0.00029016,2]
[424320342,1780768265000,-413.12645163,0.00029016,2]
[424320371,1780768265000,-389.11823969,0.00029019,2]
[424320324,1780768265000,-157.0,0.00029,4]
[424320327,1780768265000,-157.0,0.00029,4]
[424320326,1780768265000,-157.0,0.00029,4]
[424320325,1780768265000,-157.0,0.00029,4]
[424320328,1780768265000,-150.0,0.00029,7]
[424320333,1780768265000,-914.94430059,0.00029016,2]
[424320330,1780768265000,-1206.28,0.0002901,2]
[424320329,1780768265000,-1206.96,0.0002901,2]
[424320335,1780768265000,-317.90223599,0.00029016,2]
[424320336,1780768265000,-973.31875778,0.00029016,2]
[424320334,1780768265000,-365.68761633,0.00029016,2]
[424320331,1780768265000,-150.0,0.00029015,7]
[424320338,1780768265000,-832.74092478,0.00029016,2]
[424320345,1780768265000,-347.64435875,0.00029016,2]
[424320347,1780768265000,-309.80929619,0.00029016,2]
[424320346,1780768265000,-182.01745809,0.00029016,2]
[424320337,1780768265000,-155.58427189,0.00029016,2]
[424320349,1780768265000,-187.82311187,0.00029016,2]
[424320348,1780768265000,-175.78139797,0.00029016,2]
[424320343,1780768265000,-582.61503931,0.00029016,2]
[424320339,1780768265000,-303.46897777,0.00029016,2]
[424320340,1780768265000,-560.79399181,0.00029016,2]
[424320341,1780768265000,-378.85816842,0.00029016,2]
[424320368,1780768265000,-215.78930977,0.00029019,2]
[424320380,1780768265000,-354.60519565,0.00029061,2]
[424320376,1780768265000,-1206.96,0.00029042,7]
[424320404,1780768265000,-150.0,0.00029121,7]
[424320406,1780768265000,-300.0,0.0002913,7]
[424320407,1780768265000,-4542.82,0.00029132,30]
[424320408,1780768265000,-4426.92,0.00029132,30]
[424320410,1780768265000,-2856.72,0.00029132,30]
[424320411,1780768265000,-1206.96,0.00029137,7]
[424320415,1780768265000,-150.0,0.00029166,7]
[424320413,1780768265000,-464.23816978,0.00029141,2]
[424320417,1780768265000,-231.77089231,0.00029166,2]
[424320409,1780768265000,-2783.47,0.00029132,30]
[424320416,1780768265000,-434.47055022,0.00029166,2]
[424320412,1780768265000,-1206.28,0.00029137,7]
[424320419,1780768265000,-429.25314957,0.00029166,2]
[424320418,1780768265000,-320.82181019,0.00029166,2]
[424320422,1780768265000,-375.9498201,0.00029166,2]
[424320420,1780768265000,-381.36597057,0.00029166,2]
[424320425,1780768265000,-313.31789621,0.00029171,2]
[424320421,1780768265000,-349.49761866,0.00029166,2]
[424320426,1780768265000,-150.0,0.00029179,7]
[424320424,1780768265000,-1206.28,0.00029169,30]
[424320427,1780768265000,-3405.06,0.000292,7]
[424320423,1780768265000,-1206.96,0.00029169,30]
[424320369,1780768265000,-318.66346011,0.00029019,2]
[424320405,1780768265000,-150.0,0.00029124,7]
[424320403,1780768265000,-1206.28,0.00029105,2]
[424320414,1780768265000,-150.0,0.00029159,7]
[424320402,1780768265000,-1206.96,0.00029105,2]
[424320378,1780768265000,-391.51141893,0.00029058,2]
[424320400,1780768265000,-150.0,0.00029076,7]
[424320381,1780768265000,-344.72278845,0.00029061,2]
[424320379,1780768265000,-248.55845737,0.00029061,2]
[424320377,1780768265000,-1206.28,0.00029042,7]
[424320382,1780768265000,-309.01884915,0.00029061,2]
[424320387,1780768265000,-324.7166256,0.00029061,2]
[424320384,1780768265000,-412.6627507,0.00029061,2]
[424320383,1780768265000,-337.86133405,0.00029061,2]
[424320386,1780768265000,-326.40316971,0.00029061,2]
[424320397,1780768265000,-150.0,0.00029069,7]
[424320385,1780768265000,-320.83186821,0.00029061,2]
[424320393,1780768265000,-362.72710689,0.00029061,2]
[424320398,1780768265000,-1206.96,0.00029074,30]
[424320390,1780768265000,-373.39814501,0.00029061,2]
[424320388,1780768265000,-332.56655234,0.00029061,2]
[424320389,1780768265000,-323.12469998,0.00029061,2]
[424320401,1780768265000,-150.0,0.00029097,15]
[424320394,1780768265000,-351.11227462,0.00029061,2]
[424320392,1780768265000,-353.48725738,0.00029061,2]
[424320396,1780768265000,-344.98321556,0.00029061,2]
[424320395,1780768265000,-329.28899405,0.00029061,2]
[424320399,1780768265000,-1206.28,0.00029074,30]
[424320391,1780768265000,-346.56341796,0.00029061,2]
[424320466,1780768266000,-585.0,0.00029397,30]
[424320459,1780768266000,-150.0,0.00029391,7]
[424320469,1780768266000,-800.0,0.00029397,30]
[424320468,1780768266000,-706.0,0.00029397,30]
[424320467,1780768266000,-4082.0,0.00029397,30]
[424320461,1780768266000,-1092.0,0.00029395,30]
[424320462,1780768266000,-675.0,0.00029395,30]
[424320456,1780768266000,-150.0,0.00029343,7]
[424320464,1780768266000,-4110.0,0.00029397,30]
[424320465,1780768266000,-948.0,0.00029397,30]
[424320471,1780768266000,-801.0,0.00029397,30]
[424320460,1780768266000,-468.0,0.00029395,30]
[424320472,1780768266000,-1747.0,0.00029397,30]
[424320485,1780768266000,-926.031354,0.00029397,7]
[424320475,1780768266000,-1323.30755,0.00029397,7]
[424320470,1780768266000,-4288.0,0.00029397,30]
[424320473,1780768266000,-408.0,0.00029397,30]
[424320476,1780768266000,-1323.30755,0.00029397,7]
[424320479,1780768266000,-333.170844,0.00029397,7]
[424320477,1780768266000,-1323.30755,0.00029397,7]
[424320480,1780768266000,-333.170844,0.00029397,7]
[424320478,1780768266000,-1323.30755,0.00029397,7]
[424320482,1780768266000,-926.031354,0.00029397,7]
[424320481,1780768266000,-333.170844,0.00029397,7]
[424320484,1780768266000,-926.031354,0.00029397,7]
[424320483,1780768266000,-333.170844,0.00029397,7]
[424320463,1780768266000,-2972.0,0.00029395,30]
[424320474,1780768266000,-314.494272,0.00029397,30]
[424320458,1780768266000,-150.0,0.00029357,7]
[424320432,1780768266000,-150.0,0.00029211,7]
[424320455,1780768266000,-300.0,0.0002933,20]
[424320487,1780768266000,-2532.201305,0.00029397,7]
[424320429,1780768266000,-1408.35,0.000292,7]
[424320428,1780768266000,-4658.84,0.000292,7]
[424320430,1780768266000,-1206.96,0.00029201,2]
[424320442,1780768266000,-150.0,0.00029288,7]
[424320437,1780768266000,-150.0,0.00029249,7]
[424320438,1780768266000,-150.0,0.00029256,7]
[424320434,1780768266000,-1207.11,0.00029232,7]
[424320441,1780768266000,-833.92535152,0.00029277,2]
[424320431,1780768266000,-1206.28,0.00029201,2]
[424320435,1780768266000,-1206.43,0.00029232,7]
[424320436,1780768266000,-150.0,0.00029234,7]
[424320433,1780768266000,-1204.63,0.00029232,7]
[424320439,1780768266000,-759.0,0.00029273,4]
[424320440,1780768266000,-668.65185756,0.00029277,2]
[424320452,1780768266000,-24791.0239088,0.00029323,2]
[424320454,1780768266000,-3013.9457421,0.00029323,2]
[424320453,1780768266000,-3959.4789041,0.00029323,2]
[424320443,1780768266000,-4542.82,0.00029299,7]
[424320445,1780768266000,-2636.97,0.00029299,7]
[424320444,1780768266000,-4426.92,0.00029299,7]
[424320450,1780768266000,-179.97120458,0.00029319,2]
[424320451,1780768266000,-9722.9506721,0.00029323,2]
[424320446,1780768266000,-2783.47,0.00029299,7]
[424320449,1780768266000,-150.0,0.00029317,7]
[424320448,1780768266000,-150.0,0.00029301,7]
[424320447,1780768266000,-2856.72,0.00029299,7]
[424320457,1780768266000,-150.0,0.00029346,7]
[424320488,1780768266000,-2532.201305,0.00029397,7]
[424320536,1780768266000,-179.97120458,0.00029666,2]
[424320486,1780768266000,-926.031354,0.00029397,7]
[424320517,1780768266000,-150.0,0.00029507,7]
[424320522,1780768266000,-2329.0,0.00029555,7]
[424320518,1780768266000,-150.0,0.00029525,7]
[424320521,1780768266000,-150.0,0.00029534,2]
[424320520,1780768266000,-1933.13854938,0.00029532,5]
[424320527,1780768266000,-1100.52,0.00029592,7]
[424320528,1780768266000,-150.0,0.00029615,7]
[424320529,1780768266000,-150.0,0.00029617,7]
[424320544,1780768266000,-150.0,0.00029705,7]
[424320537,1780768266000,-150.0,0.00029672,7]
[424320532,1780768266000,-4426.92,0.00029634,30]
[424320530,1780768266000,-151.24,0.00029621,2]
[424320535,1780768266000,-150.0,0.0002966,7]
[424320531,1780768266000,-4542.82,0.00029634,30]
[424320534,1780768266000,-464.23816978,0.00029639,2]
[424320539,1780768266000,-151.0,0.00029677,7]
[424320538,1780768266000,-151.0,0.00029677,7]
[424320533,1780768266000,-150.0,0.00029634,7]
[424320541,1780768266000,-151.0,0.00029677,7]
[424320540,1780768266000,-151.0,0.00029677,7]
[424320543,1780768266000,-215.80795776,0.000297,10]
[424320545,1780768266000,-150.0,0.00029726,7]
[424320546,1780768266000,-150.0,0.0002975,7]
[424320547,1780768266000,-150.0,0.00029781,7]
[424320548,1780768266000,-150.0,0.00029793,7]
[424320542,1780768266000,-150.0,0.00029679,7]
[424320489,1780768266000,-2532.201305,0.00029397,7]
[424320524,1780768266000,-150.0,0.0002957,7]
[424320526,1780768266000,-1742.26,0.00029592,7]
[424320519,1780768266000,-306.13905836,0.0002953,20]
[424320523,1780768266000,-150.0,0.00029562,7]
[424320500,1780768266000,-150.0,0.00029464,7]
[424320498,1780768266000,-1300.7,0.00029452,2]
[424320499,1780768266000,-150.0,0.00029453,7]
[424320490,1780768266000,-2532.201305,0.00029397,7]
[424320501,1780768266000,-4542.82,0.00029467,2]
[424320491,1780768266000,-342.548366,0.00029397,7]
[424320493,1780768266000,-342.548366,0.00029397,7]
[424320495,1780768266000,-150.0,0.00029398,7]
[424320494,1780768266000,-342.548366,0.00029397,7]
[424320492,1780768266000,-342.548366,0.00029397,7]
[424320525,1780768266000,-1217.88,0.00029592,7]
[424320497,1780768266000,-150.0,0.00029435,7]
[424320502,1780768266000,-4426.92,0.00029467,2]
[424320504,1780768266000,-150.0,0.0002948,7]
[424320496,1780768266000,-1196.77,0.000294,14]
[424320505,1780768266000,-6829.9256791,0.00029484,2]
[424320515,1780768266000,-156.05586424,0.000295,3]
[424320506,1780768266000,-428.37,0.00029498,14]
[424320509,1780768266000,-400.0,0.000295,2]
[424320514,1780768266000,-155.0551496,0.000295,3]
[424320511,1780768266000,-153.91478541,0.000295,3]
[424320516,1780768266000,-158.38424908,0.000295,3]
[424320510,1780768266000,-151.48476517,0.000295,3]
[424320512,1780768266000,-154.48810128,0.000295,3]
[424320513,1780768266000,-155.04442897,0.000295,3]
[424320503,1780768266000,-150.0,0.00029476,7]
[424320507,1780768266000,-225.78,0.00029498,14]
[424320508,1780768266000,-916.96,0.00029498,30]
[424320564,1780768267000,-2129.55451,0.00029886,7]
[424320551,1780768267000,-4542.82,0.00029802,7]
[424320550,1780768267000,-1196.77,0.000298,14]
[424320549,1780768267000,-150.0,0.00029795,7]
[424320553,1780768267000,-759.0,0.00029807,4]
[424320563,1780768267000,-2129.55451,0.00029886,7]
[424320555,1780768267000,-932.06294714,0.00029832,2]
[424320552,1780768267000,-4426.92,0.00029802,7]
[424320565,1780768267000,-2129.55451,0.00029886,7]
[424320556,1780768267000,-150.0,0.00029836,7]
[424320575,1780768267000,-1372.41645088,0.00029886,2]
[424320566,1780768267000,-2129.55451,0.00029886,7]
[424320559,1780768267000,-433.109753,0.00029886,7]
[424320561,1780768267000,-433.109753,0.00029886,7]
[424320554,1780768267000,-152.0,0.0002983,6]
[424320557,1780768267000,-150.0,0.0002984,7]
[424320558,1780768267000,-150.0,0.00029885,7]
[424320560,1780768267000,-433.109753,0.00029886,7]
[424320562,1780768267000,-433.109753,0.00029886,7]
[424320731,1780768268000,-150.0,0.0003011,7]
[424320733,1780768268000,-150.0,0.0003011,7]
[424320721,1780768268000,-150.0,0.00030065,7]
[424320717,1780768268000,-534.43108283,0.0003004,2]
[424320714,1780768268000,-524.24642799,0.0003004,2]
[424320715,1780768268000,-211.8481424,0.0003004,2]
[424320718,1780768268000,-248.52630852,0.00030045,2]
[424320719,1780768268000,-469.97684432,0.00030045,2]
[424320713,1780768268000,-604.57780377,0.0003004,2]
[424320732,1780768268000,-256.07744874,0.0003011,7]
[424320710,1780768268000,-481.23271528,0.0003004,2]
[424320716,1780768268000,-563.92473015,0.0003004,2]
[424320708,1780768268000,-238.70471876,0.0003004,2]
[424320724,1780768268000,-500.0,0.0003007,2]
[424320729,1780768268000,-1000.0,0.000301,3]
[424320720,1780768268000,-150.0,0.00030055,7]
[424320744,1780768268000,-1094.33704751,0.0003013,2]
[424320736,1780768268000,-150.0,0.0003011,7]
[424320741,1780768268000,-151.0,0.00030127,7]
[424320745,1780768268000,-14124.51304655,0.0003013,2]
[424320742,1780768268000,-208.3377588,0.00030129,7]
[424320734,1780768268000,-150.0,0.0003011,7]
[424320722,1780768268000,-1051.11,0.00030067,30]
[424320735,1780768268000,-150.0,0.0003011,7]
[424320727,1780768268000,-320.0,0.00030082,8]
[424320728,1780768268000,-320.0,0.00030082,8]
[424320726,1780768268000,-1000.0,0.0003007,2]
[424320711,1780768268000,-643.87972436,0.0003004,2]
[424320723,1780768268000,-500.0,0.0003007,2]
[424320725,1780768268000,-1000.0,0.0003007,2]
[424320730,1780768268000,-1051.11,0.000301,30]
[424320709,1780768268000,-463.54178461,0.0003004,2]
[424320704,1780768268000,-1051.11,0.00030033,30]
[424320707,1780768268000,-243.59288483,0.0003004,2]
[424320743,1780768268000,-12313.40855667,0.0003013,2]
[424320678,1780768268000,-7000.0,0.0003,3]
[424320679,1780768268000,-584.11919292,0.0003,30]
[424320680,1780768268000,-20260.82756898,0.0003,2]
[424320677,1780768268000,-26931.31918075,0.0003,5]
[424320681,1780768268000,-70727.59586373,0.0003,2]
[424320682,1780768268000,-2000.0,0.0003,3]
[424320684,1780768268000,-1852.62566093,0.0003,2]
[424320685,1780768268000,-899.65859259,0.0003,10]
[424320686,1780768268000,-400.0,0.0003,20]
[424320687,1780768268000,-1000.0,0.0003,2]
[424320694,1780768268000,-756.1253189,0.0003,3]
[424320683,1780768268000,-1125.17862616,0.0003,2]
[424320689,1780768268000,-4954.54145424,0.0003,24]
[424320712,1780768268000,-572.04895585,0.0003004,2]
[424320693,1780768268000,-650.0,0.0003,2]
[424320692,1780768268000,-10801.72822291,0.0003,2]
[424320688,1780768268000,-166.15165995,0.0003,2]
[424320691,1780768268000,-3405.06,0.0003,7]
[424320696,1780768268000,-200.0,0.0003,2]
[424320695,1780768268000,-1051.11,0.0003,30]
[424320697,1780768268000,-200.0,0.0003,2]
[424320698,1780768268000,-2500.0,0.0003,3]
[424320706,1780768268000,-651.70582533,0.0003004,2]
[424320699,1780768268000,-200.0,0.0003,2]
[424320700,1780768268000,-150.0,0.0003,7]
[424320705,1780768268000,-229.0131444,0.0003004,2]
[424320701,1780768268000,-179.97120458,0.00030014,2]
[424320702,1780768268000,-150.0,0.0003002,7]
[424320703,1780768268000,-320.0,0.00030027,8]
[424320690,1780768268000,-9910.89285539,0.0003,14]
[424320739,1780768268000,-151.0,0.00030127,7]
[424320808,1780768268000,-342.548366,0.0003013,7]
[424320738,1780768268000,-6829.9256791,0.00030111,2]
[424320780,1780768268000,-433.109753,0.0003013,7]
[424320781,1780768268000,-2129.55451,0.0003013,7]
[424320783,1780768268000,-2129.55451,0.0003013,7]
[424320777,1780768268000,-433.109753,0.0003013,7]
[424320782,1780768268000,-2129.55451,0.0003013,7]
[424320784,1780768268000,-2129.55451,0.0003013,7]
[424320787,1780768268000,-374.665694,0.0003013,7]
[424320785,1780768268000,-374.665694,0.0003013,7]
[424320788,1780768268000,-374.665694,0.0003013,7]
[424320786,1780768268000,-374.665694,0.0003013,7]
[424320789,1780768268000,-1323.30755,0.0003013,7]
[424320790,1780768268000,-1323.30755,0.0003013,7]